Cogmind - Beta 14 @@@ ROGUE MODE // 2024.10.11 @ 23:50:14 Player: star Result: Destroyed by S-10 Pest with Light Assault Rifle Performance ------------- Evolutions (0) 0 Regions Visited (2) 400 Robots Destroyed (8) 40 Value Destroyed (191) 191 Prototype IDs (0) 0 Alien Tech Used (0) 0 Bonus (0) 0 TOTAL SCORE: 631 Bonus ------- None Cogmind --------- Core Integrity 0/250 Matter 282/300 Energy 71/100 System Corruption 0% Temperature Cool (0) Movement Rolling (80) Location -10/Mines Parts ------- > --- POWER (1) -------- (None) > --- PROPULSION (2) --- Wheel Wheel > --- UTILITY (2) ------ Improved Heat Sink Small Storage Unit > --- WEAPON (2) ------- Light Assault Rifle > --- INVENTORY (8) ---- Wheel Wheel Compact Wheel Compact Wheel Signal Interpreter Bore Cannon Peak State ------------ > --- POWER ------------ Ion Engine > --- PROPULSION ------- Wheel Compact Wheel > --- UTILITY ---------- Small Storage Unit > --- WEAPON ----------- EM Pulse Gun Bore Cannon > --- INVENTORY -------- Light Assault Rifle Light Assault Rifle Light Assault Rifle [Rating: 10] Favorites ----------- Power Ion Engine Engine Ion Engine Propulsion Compact Wheel Wheel Compact Wheel Utility Small Storage Unit Device Improved Heat Sink Storage Small Storage Unit Weapon Light Assault Rifle Energy Gun EM Pulse Gun Ballistic Gun Light Assault Rifle Ballistic Cannon Bore Cannon Build | -11 -10 -10 ------- Run | Yrd Mat Min Slots Evolved . | . . . Power . | . . . Propulsion . | . . . Utility . | . . . Weapon . | . . . Parts Attached 17 | 6 . 11 Power 1 | 1 . . Engine 1 | 1 . . Core . | . . . Reactor . | . . . Propulsion 7 | 2 . 5 Treads . | . . . Leg . | . . . Wheel 7 | 2 . 5 Hover . | . . . Flight . | . . . Utility 2 | 1 . 1 Device 1 | . . 1 Storage 1 | 1 . . Processor . | . . . Hackware . | . . . Protection . | . . . Artifact . | . . . Weapon 7 | 2 . 5 Energy Gun 1 | 1 . . Energy Cannon . | . . . Ballistic Gun 5 | 1 . 4 Ballistic Cannon 1 | . . 1 Launcher . | . . . Special Weapon . | . . . Impact Weapon . | . . . Slashing Weapon . | . . . Piercing Weapon . | . . . Special Melee Weapon . | . . . Unidentified Prototypes . | . . . Parts Lost 7 | . . 7 Power 1 | . . 1 Propulsion 2 | . . 2 Utility . | . . . Weapon 4 | . . 4 Highest Loss Streak 2 | . . 2 To Critical Strikes . | . . . Average Slot Usage (%) 80 | . 85 78 Engine 8 | . 14 6 Wheel 24 | . 28 23 Device 4 | . . 6 Storage 14 | . 14 14 Energy Gun 7 | . 14 5 Ballistic Gun 17 | . 14 19 Ballistic Cannon 1 | . . 2 Peak Build Rating 10 | 6 6 10 Average Rating 6 | 3 6 7 On Entrance 4 | . 6 6 Naked Turns . | . . . Heaviest Build 21 | 13 13 21 Greatest Support 26 | 26 26 26 Greatest Overweight (x) 1 | . . 1 Average Overweight (x) . | . . . Largest Inventory Capacity 8 | 8 8 8 Average Capacity 7 | 7 8 8 Most Carried 6 | 1 3 6 Average Carried 2 | . 1 3 Final Capacity 8 | 8 8 8 Final Carried 6 | 1 3 6 Class Distribution -------------------- 100% | Mutant Dominant Class ---------------- Mutant | -10/Materials Mutant | -10/Mines Resources | -11 -10 -10 ----------- Run | Yrd Mat Min Matter Collected 474 | 232 45 197 Remotely . | . . . Salvage Created 307 | . 201 106 Parts 16 | . 13 3 Haulers Intercepted 1 | . 1 . Recyclers Shooed . | . . . Parts Field Recycled . | . . . Retrieved Matter . | . . . Parts Self-Destructed . | . . . Prevented . | . . . Kills | -11 -10 -10 ------- Run | Yrd Mat Min Combat Hostiles Destroyed 9 | . 5 4 Guns 9 | . 5 4 Classes Destroyed 4 | . 3 1 Hauler 1 | . 1 . Swarmer 3 | . 3 . Grunt 4 | . 2 2 Assembled 2 | . . 2 Best Kill Streak 5 | . 5 2 Combat Bots Only 5 | . 5 2 Max Kills in Single Turn 1 | . 1 1 Gunslinging . | . . . Exploded . | . . . Melee . | . . . Uniques/NPCs Destroyed . | . . . Combat | -11 -10 -10 -------- Run | Yrd Mat Min Hostile Shots Fired 81 | . 13 68 Missed 28 | . 2 26 Damage Taken 887 | . 95 792 Core 255 | . 8 247 Absorbed by Shields . | . . . Core Remaining (%) 100 | 100 . . Volleys Fired 51 | . 17 34 Largest 2 | . 2 2 Hottest 97 | . 60 97 Shots Fired 93 | . 34 59 Gun 80 | . 34 46 Cannon 13 | . . 13 Launcher . | . . . Special . | . . . Kinetic 69 | . 17 52 Thermal . | . . . Explosive . | . . . Electromagnetic 24 | . 17 7 Robot Hit Streak 7 | . 7 7 Robot Miss Streak 6 | . 5 6 Penetration Max 1 | . . 1 Secondary Targets 1 | . . 1 Max Gunslinging Chain 1 | . . 1 Shots Hit Robots 48 | . 20 28 Core Hits 24 | . 9 15 Critical Kills . | . . . Critical Parts Destroyed . | . . . Critical Strikes . | . . . Melee Attacks . | . . . Impact . | . . . Slashing . | . . . Piercing . | . . . Sneak Attacks . | . . . Combat Hostiles . | . . . Follow-up Attacks . | . . . Damage Inflicted 531 | . 235 296 Guns 425 | . 235 190 Cannons 106 | . . 106 Explosions . | . . . Melee . | . . . Ramming . | . . . Kinetic 364 | . 68 296 Thermal . | . . . Explosive . | . . . Electromagnetic 167 | . 167 . Impact . | . . . Slashing . | . . . Piercing . | . . . Highest Corruption . | . . . Average Corruption . | . . . Corruption Purged . | . . . Corruption Blocked . | . . . Overload Shots . | . . . Overflow Damage 5 | . . 5 Projectiles 5 | . . 5 Explosions . | . . . Melee . | . . . Knockbacks 3 | . . 3 Impact . | . . . Kinetic 3 | . . 3 Secondary . | . . . Self-Inflicted Damage . | . . . Shots . | . . . Rammed . | . . . Targets Rammed . | . . . Kicked . | . . . Crushed . | . . . Highest Temperature 315 | . 64 315 Average Temperature 104 | . 23 149 Received Heat Transfer 198 | . 30 168 Effects 1 | . . 1 Energy Bleed 1 | . . 1 Siege Activations . | . . . Robots Corrupted . | . . . Combat Hostiles . | . . . Parts Fried . | . . . Impact Corruptions . | . . . Robots Melted . | . . . Combat Hostiles . | . . . Parts Melted . | . . . Heat Transferred . | . . . Parts Sabotaged . | . . . Parts Stolen . | . . . Parts Stripped . | . . . Power Chain Reactions . | . . . Alert | -11 -10 -10 ------- Run | Yrd Mat Min Peak Influence 209 | . 209 123 Initial 81 | . . 81 Average 71 | . 87 71 Maximum Alert Level 1 | . 1 . Low Security (%) 92 | 100 73 100 Level 1 7 | . 26 . Level 2 . | . . . Level 3 . | . . . Level 4 . | . . . Level 5 . | . . . High Security . | . . . Max Security . | . . . Squads Dispatched 1 | . 1 . Investigation 1 | . 1 . Extermination . | . . . Reinforcement . | . . . Assault . | . . . Garrison . | . . . Intercept . | . . . Searches Triggered . | . . . Construction Impeded . | . . . Haulers Reinforced . | . . . Active Scanning Responses . | . . . Cargo Convoy Interrupts . | . . . Stealth | -11 -10 -10 --------- Run | Yrd Mat Min Distress Signals 2 | . 2 . Communications Jammed . | . . . Distress Signals . | . . . Times Spotted 20 | . 10 10 Peak Tracking Total 5 | . 5 3 Tactical Retreats 4 | . 2 2 Traps | -11 -10 -10 ------- Run | Yrd Mat Min Traps Triggered . | . . . Indirectly . | . . . Trap Hack Attempts . | . . . Triggered . | . . . Disarmed . | . . . Reprogrammed . | . . . Reused . | . . . Traps Extracted . | . . . Installed . | . . . Triggered . | . . . Machines | -11 -10 -10 ---------- Run | Yrd Mat Min Machines Disabled 1 | . . 1 Max in Single Turn 1 | . . 1 Machines Repaired . | . . . Machines Dismantled . | . . . Machines Sabotaged . | . . . Overloaded Fab Kills . | . . . Hacking | -11 -10 -10 --------- Run | Yrd Mat Min Machines Accessed 2 | . 2 . Terminals 2 | . 2 . Fabricators . | . . . Repair Stations . | . . . Recycling Units . | . . . Scanalyzers . | . . . Garrison Access . | . . . Total Hacks 4 | . 4 . Successful 2 | . 2 . Failed 2 | . 2 . Catastrophic 1 | . 1 . Database Lockouts . | . . . Manual . | . . . Terminals 4 | . 4 . Fabricators . | . . . Repair Stations . | . . . Recycling Units . | . . . Scanalyzers . | . . . Garrison Access . | . . . Terminal Hacks 2 | . 2 . Record 2 | . 2 . Fabricator Hacks . | . . . Repair Station Hacks . | . . . Recycling Unit Hacks . | . . . Scanalyzer . | . . . Garrison Access Hacks . | . . . Unauthorized Hacks . | . . . Terminals . | . . . Fabricators . | . . . Repair Stations . | . . . Recycling Units . | . . . Scanalyzers . | . . . Garrison Access . | . . . Data Cores Recovered . | . . . Used . | . . . Hacking Detections 2 | . 2 . Full Trace Events 1 | . 1 . Feedback Events . | . . . Feedback Blocked . | . . . Robot Schematics Acquired . | . . . Robots Built . | . . . Authchips . | . . . Time . | . . . Total Robot Build Rating . | . . . Part Schematics Acquired . | . . . Parts Built . | . . . Authchips . | . . . Time . | . . . Total Part Build Rating . | . . . Parts Repaired . | . . . Time . | . . . Parts Recycled . | . . . Recycled Matter . | . . . Retrieved Matter . | . . . Retrieved Components . | . . . Parts Scanalyzed . | . . . Part Schematics Acquired . | . . . Parts Damaged . | . . . Bothacking | -11 -10 -10 ------------ Run | Yrd Mat Min Used RIF Installer . | . . . Robots Hacked . | . . . Non-combat . | . . . Combat . | . . . Robot Hacks Applied . | . . . Relay Couplers Released . | . . . Fabnet Peak Effective % . | . . . Robots Rewired . | . . . Allies Hacked . | . . . Hacks Repelled . | . . . Allies | -11 -10 -10 -------- Run | Yrd Mat Min Total Allies . | . . . Largest Group . | . . . Highest-Rated Group . | . . . Highest-Rated Ally . | . . . Total Orders . | . . . Ally Attacks . | . . . Total Damage . | . . . Kills . | . . . Allies Corrupted . | . . . Allies Melted 1 | . . 1 Intel | -11 -10 -10 ------- Run | Yrd Mat Min Robot Analysis Total . | . . . Derelict Logs Recovered 1 | . . 1 Drone Launches . | . . . Drone Recoveries . | . . . Exploration | -11 -10 -10 ------------- Run | Yrd Mat Min Turns Passed 787 | 46 214 527 Spaces Moved 647 | 45 159 443 Core 7 | 7 . . Treads . | . . . Legs . | . . . Wheels 640 | 38 159 443 Hover . | . . . Flight . | . . . Fastest Speed 50 | 50 90 80 Average Speed 90 | 81 90 91 Slowest Speed 115 | 90 90 115 Overloaded Moves . | . . . Propulsion Burnouts . | . . . Robots Hopped . | . . . Cave-ins Triggered . | . . . Exploration Rate (%) 39 | 4 39 74 Regions Visited 2 Branch Regions 1 Pre-discovered Areas 1 | . . 1 Known Exits Taken . | . . . Unknown Exits Taken 2 | 1 1 . Scrap Searched 1 | . . 1 Spaces Dug . | . . . Terrain Destroyed 9 | . . 9 Melee . | . . . Projectile 9 | . . 9 AOE . | . . . Terrain Rammed . | . . . Walls Destroyed . | . . . Machines Disabled . | . . . Actions | -11 -10 -10 --------- Run | Yrd Mat Min Total 759 | 51 199 509 Wait 40 | . 22 18 Move 645 | 44 158 443 Hop . | . . . Pick Up 6 | 1 2 3 Fast Attach 9 | 6 . 3 Attach 3 | . . 3 Detach . | . . . Swap 5 | . . 5 Drop . | . . . Fire 51 | . 17 34 Melee . | . . . Ram . | . . . Kick . | . . . Crush . | . . . Escape Stasis . | . . . Rewire . | . . . Trap . | . . . Miscellaneous . | . . . Route ------- -11/Scrapyard -10/Materials -10/Mines (discovered 1 exit: [*Mat]) History --------- Turn | Location | Event 13 | -11/Scrapyard | Discovered new exit (range 16) 47 | -11/Scrapyard | Entered Materials 238 | -10/Materials | Discovered new exit (range 10) 261 | -10/Materials | Entered Mines 297 | -10/Mines | Assembled infested the area 302 | -10/Mines | Assisted by a Guerilla fighting off Assembled 316 | -10/Mines | Build established: Mutant 397 | -10/Mines | A weapon hastily lodged in a ceiling crevice suddenly fell to the ground 672 | -10/Mines | Core integrity fell below 50% 735 | -10/Mines | Core integrity fell below 20% 784 | -10/Mines | Discovered new exit (range 12) 788 | -10/Mines | Destroyed by S-10 Pest with Light Assault Rifle Last Messages --------------- 00736_ YI-UF0 destroyed. 00741_ The unstable cave ceiling collapses. 00743_ Acquired 7 matter. 00744_ The unstable cave ceiling collapses. 00751_ Acquired 1 matter. 00758_ K-01 Serf collects debris. 00760_ The unstable cave ceiling collapses. 00760_ K-01 Serf collects debris. 00764_ Acquired Wheel. 00765_ Acquired 14 matter. 00767_ The unstable cave ceiling collapses. 00767_ K-01 Serf collects debris. 00772_ The unstable cave ceiling collapses. 00774_ K-01 Serf collects debris. 00775_ The unstable cave ceiling collapses. 00775_ U-05 Engineer lays Concrete. 00784_ EXIT=FOUND 00785_ U-05 Engineer lays Concrete. 00787_ Lgt. Assault Rifle destroyed. 00787_ U-05 Engineer lays Concrete. Map ----- +----------------------------------------------------+ | ?????????????????????????????????????? | | ?????????????????????????????????????? | | ?????????????????????????????????????? | | ?????????????????????????????????????? | | ##???????????????????????????????????? | | ##??????????????????????????????????? | | ######### ?????????????????????????? | | " ?????????????????????????? | | " ???????????????????????????? | | " #??????????????????????????????? | | #???????????????????????????????? | | ###???????????????????????????????? | | ##??????????????????????#??????????? | | ##?????????????????????? # ?????????? | | #??????????????????????? ?????? ?? | | #??????????????????????? ????? #? | | #??????????????????????# ?????< ? | | #???????????????????### #???? ?? | | #????????????####??## =????% ??? | | ######???????# ### ???? = ???? | | ##???????# = ###?? ????? | | #### #????????# % # #? ?????? | | #### #?????????# ?# #??????? | | ### #?????????# ?# ##?????? | | ## ####?????### ### #?????? | | # #???### * @ ss # #???? | | % # ### # # |s= ##???? | | # # ??### = #???? | | ! # ## #??# # #???? | | % # ##### % " ## #?????? | | # " " #?####?????? | | ## * ## ## u #??????????? | | # % # #??????????? | | *!* ##??????????? | | # % %| # ##???????????? | | # # #####????????????? | | %# #????????????????? | | ## # #????????????????? | | # # #????????????????? | | ## # ###????????????????? | | # #????????????????? | | ## ##????????????????? | | # ##???????????????? | | #???????????????? | | #???????????????? | | #???????????????? | | ## % #### #?????????? | | ##### #?????????? | | ##???# # ##### #?????????? | | ####????### ####????????????????? | +----------------------------------------------------+ Best States ------------- Heat Dissipation 39 Energy Generation 10 Energy Capacity 250 Matter Stores 300 Matter Capacity 300 Sight Range 16 Terrain Scan Density 10 Evasion (%) 44 Item Schematics ----------------- None Robot Schematics ------------------ None Fabricated ------------ Nothing Alien Tech Used ----------------- None Achievements -------------- None Challenges ------------ None Game ------ Seed HardenedChainSlayer Manual? 0 Play Time 00:10:24 Cumulative 112.7 hours Start 2024.10.11 @ 19:09:48 End 2024.10.11 @ 23:50:14 Sessions 1 Manual Loads 0 Difficulty Rogue Special Mode None Game No. 194 Rogue 194 Adventurer 0 Explorer 0 Win Type - Total 1 Types 1/0/0/0/0/0/0/0/0 Lore% 51 Gallery% 56 Achievement% 46 Wizard Run 0 Options --------- Layout 0 ASCII 0 Keyboard 1 Movement Numpad Keybinds 0 Fullscreen 2 Font 18/SmallcapsGlow Map View 76x50 Zoom Use 0% Tactical HUD 1 Map Filters NONE Filters NONE Steam 1 RUN: 970fedc4-c197-4836-b11e-0ed5c50ac830